bitfinex-derivatives/quotes_ETHF0:USTF0_20250428
["timestamp","ask_amount","ask_price","bid_price","bid_amount"]
[1745812319351,2.78535,1783.3,1783.2,40.8]
[1745812320059,2.78535,1783.3,1783.2,42.5228]
[1745812322452,1.1211,1783.4,1783.2,46.8518]
[1745812322654,2.76345,1783.5,1783.3,1.6028]
[1745812323459,2.76345,1783.5,1783.4,0.8377]
[1745812326775,2.76345,1783.5,1783.4,2.5218]
[1745812330190,1.6424,1783.5,1783.2,44.0078]
[1745812330389,2.72374,1783.4,1783.2,46.4628]
[1745812330783,2.72374,1783.4,1783.3,1.6047]
[1745812334798,1.12115,1783.3,1783.2,44.8581]
[1745812334997,2.71145,1783.3,1783.2,44.0078]
[1745812335297,3.56595,1783.3,1783.2,44.0078]
[1745812336293,1.12111,1783.4,1783.2,44.0078]
[1745812336500,1.5968,1783.5,1783.3,1.92935]
[1745812336696,1.5968,1783.5,1783.4,0.8133]
[1745812337199,1.5968,1783.5,1783.4,2.5058]
[1745812337401,1.5968,1783.5,1783.4,3.62689]
[1745812337595,1.5968,1783.5,1783.4,2.5058]
[1745812337798,1.1208,1783.9,1783.6,1.12093]
[1745812337991,1.1208,1783.9,1783.7,3.60859]
[1745812338299,1.1208,1783.9,1783.8,2.5058]
[1745812338497,3.1926,1784.0,1783.8,2.5058]
[1745812338498,4.31336,1784.0,1783.8,2.5058]
[1745812338699,3.51156,1784.0,1783.8,5.7136]
[1745812338898,1.12078,1783.9,1783.8,5.7136]
[1745812339099,2.82218,1783.9,1783.8,5.7136]
[1745812341312,1.12064,1784.2,1783.9,1.12075]
[1745812341502,1.12067,1784.1,1784.0,1.6116]
[1745812342308,2.82201,1784.2,1784.0,1.6116]
[1745812342698,1.7014,1784.2,1784.1,0.849]
[1745812342898,2.77867,1784.3,1784.1,0.849]
[1745812342899,1.12052,1784.3,1784.1,1.9696]
[1745812343105,1.12052,1784.3,1784.2,0.7935]
[1745812343307,6.0716,1784.4,1784.2,41.5935]
[1745812343502,6.0716,1784.4,1784.2,43.2357]
[1745812343701,6.0716,1784.4,1784.3,1.6422]
[1745812345607,4.9511,1784.4,1784.3,42.4422]
[1745812345807,1.12046,1784.4,1784.3,42.4422]
[1745812346007,2.80776,1784.4,1784.3,40.8]
[1745812346807,2.90155845,1784.4,1784.3,40.8]
[1745812347305,2.90155845,1784.4,1783.8,3.2078]
[1745812347306,1.12078,1783.9,1783.8,3.2078]
[1745812347513,1.12078,1783.9,1783.7,2.429]
[1745812347706,1.1209,1783.7,1783.6,3.2078]
[1745812348010,1.6873,1783.8,1783.6,4.32876]
[1745812348211,1.6873,1783.8,1783.7,42.4149]
[1745812349310,2.80814,1783.8,1783.7,42.4149]
[1745812349811,2.80814,1783.8,1783.7,40.8]
[1745812353113,1.12103,1783.5,1783.4,0.8141]
[1745812353515,1.12103,1783.5,1783.4,41.6141]
[1745812353715,2.79619,1783.6,1783.4,43.2262]
[1745812353914,1.12103,1783.5,1783.4,43.2262]
[1745812354117,2.79623,1783.5,1783.4,43.2262]
[1745812354617,2.79623,1783.5,1783.4,46.434]
[1745812355318,1.6717,1783.7,1783.4,47.55506]
[1745812355614,1.12097,1783.6,1783.5,1.7163]
[1745812356314,2.78497,1783.6,1783.5,1.7163]
[1745812357408,1.12103,1783.5,1783.4,44.8219]
[1745812357608,2.82413,1783.5,1783.4,44.8219]
[1745812357906,2.82413,1783.5,1783.4,44.0078]
[1745812358106,2.82413,1783.5,1783.4,40.8]
[1745812358414,1.1213,1783.1,1782.9,4.0024]
[1745812358614,1.12125,1783.2,1782.9,7.605]
[1745812358917,1.12125,1783.2,1783.0,42.426]
[1745812359112,2.5183,1783.3,1783.0,42.426]
[1745812359317,1.12128,1783.1,1783.0,40.8]
[1745812360015,2.82438,1783.1,1783.0,40.8]
[1745812360421,1.7031,1783.1,1783.0,40.8]
[1745812360613,2.82438,1783.1,1783.0,42.4835]
[1745812360915,1.7031,1783.1,1783.0,42.4835]
[1745812361115,2.82438,1783.1,1783.0,42.4835]
[1745812362817,1.7031,1783.1,1783.0,42.4835]
[1745812363321,2.82438,1783.1,1783.0,42.4835]
[1745812363612,1.7031,1783.1,1783.0,42.4835]
[1745812363819,1.12123,1783.2,1783.0,42.4835]
[1745812364019,1.12123,1783.2,1783.1,1.6475]
[1745812364020,2.71553,1783.2,1783.1,1.6475]
[1745812364418,2.71553,1783.2,1783.1,4.8553]
[1745812364813,0.8152,1783.3,1783.1,4.8553]
[1745812365022,2.71543,1783.4,1783.2,1.6475]
[1745812365212,1.5943,1783.4,1783.3,0.797]
[1745812365413,1.12099,1783.6,1783.3,45.92591]
[1745812365714,1.12103,1783.5,1783.4,1.6475]
[1745812366630,2.7153,1783.6,1783.4,1.6475]
[1745812367239,1.12103,1783.5,1783.4,1.6475]
[1745812367521,2.80773,1783.5,1783.4,1.6475]
[1745812367922,1.6995,1783.7,1783.4,2.76859]
[1745812368128,3.3862,1783.7,1783.5,0.7975]
[1745812368327,1.12096,1783.6,1783.5,2.457]
[1745812368624,2.80766,1783.6,1783.5,2.457]
[1745812372629,2.80766,1783.6,1783.5,0.7975]
[1745812372929,1.6867,1783.6,1783.3,44.8048]
[1745812373128,1.7058,1783.5,1783.4,1.6539]
[1745812373324,1.97504,1783.7,1783.4,2.77493]
[1745812373524,1.97504,1783.7,1783.5,1.91542]
[1745812373726,2.82674,1783.7,1783.5,3.56932]
[1745812373928,2.82674,1783.7,1783.5,5.6561]
[1745812374128,2.82674,1783.7,1783.6,1.6539]
[1745812381539,1.7058,1783.7,1783.6,1.6539]
[1745812381744,7.64152,1783.9,1783.6,2.77484]
[1745812381936,1.12084,1783.8,1783.7,0.8247]
[1745812382132,2.86924,1783.8,1783.7,2.5439]
[1745812383151,1.1209,1783.7,1783.5,4.0022]
[1745812383354,1.12096,1783.6,1783.5,6.5461]
[1745812383553,2.86935,1783.7,1783.5,6.5461]
[1745812383955,1.12096,1783.6,1783.5,6.5461]
[1745812384153,2.86936,1783.6,1783.5,6.5461]
[1745812384755,2.86936,1783.6,1783.5,4.8269]
[1745812386053,1.7484,1783.6,1783.5,6.557]
[1745812386352,2.86936,1783.6,1783.5,6.557]
[1745812387358,1.7484,1783.6,1783.5,7.67803]
[1745812387560,1.12091,1783.7,1783.5,7.67803]
[1745812387765,1.12091,1783.7,1783.6,1.7301]
[1745812388456,1.12074,1784.0,1783.8,1.12084]
[1745812388653,1.5964,1784.0,1783.9,1.12078]
[1745812388856,1.5964,1784.0,1783.9,4.43318]
[1745812389062,1.5964,1784.0,1783.9,0.8019]
[1745812389366,2.71711,1784.0,1783.8,3.2078]
[1745812389569,1.5964,1784.0,1783.8,5.13053]
[1745812389860,3.2078,1784.3,1783.9,1.12076]
[1745812390065,1.12069,1784.1,1783.9,1.6615]
[1745812390269,1.5964,1784.0,1783.9,2.78228]
[1745812391169,1.5964,1784.0,1783.8,4.8587]
[1745812391374,1.12078,1783.9,1783.8,4.0097]
[1745812391861,1.92418,1783.9,1783.8,4.0097]
[1745812392662,2.71716,1784.0,1783.8,5.13054]
[1745812392861,1.5964,1784.0,1783.9,1.12078]
[1745812393062,1.5964,1784.0,1783.9,2.77448]
[1745812393263,2.71711,1784.0,1783.9,1.6537]
[1745812393873,1.5964,1784.0,1783.9,1.6537]
[1745812394273,1.5964,1784.0,1783.9,2.77448]
[1745812394869,1.12078,1783.9,1783.8,4.0097]
[1745812395075,1.12078,1783.9,1783.6,3.2078]
[1745812395076,1.12094,1783.7,1783.6,3.2078]
[1745812395275,2.80187,1783.8,1783.6,4.32874]
[1745812395480,2.8019,1783.7,1783.6,3.2078]
[1745812395773,1.681,1783.7,1783.6,4.32876]
[1745812396171,2.8019,1783.7,1783.6,4.32876]
[1745812396370,1.681,1783.7,1783.6,3.2078]
[1745812396870,2.8019,1783.7,1783.6,3.2078]
[1745812398275,1.681,1783.7,1783.6,4.32876]
[1745812398975,2.8019,1783.7,1783.6,3.2078]
[1745812399474,1.681,1783.7,1783.6,4.32876]
[1745812399674,1.681,1783.7,1783.6,5.97736]
[1745812400576,2.8019,1783.7,1783.6,5.97736]
[1745812401378,2.8019,1783.7,1783.6,4.8564]
[1745812401579,2.8019,1783.7,1783.6,3.2078]
[1745812402377,2.8019,1783.7,1783.5,4.4226]
[1745812402378,1.12096,1783.6,1783.5,4.4226]
[1745812402570,3.67766,1783.6,1783.5,4.4226]
[1745812402773,3.67766,1783.6,1783.5,3.3016]
[1745812403175,3.67766,1783.6,1783.5,2.509]
[1745812403375,3.67766,1783.6,1783.5,0.8445]
[1745812404178,3.67766,1783.6,1783.5,1.96553]
[1745812404374,2.5567,1783.6,1783.5,1.96553]
[1745812404580,1.12095,1783.7,1783.6,1.12096]
[1745812404879,1.12095,1783.7,1783.5,3.68668]
[1745812405278,1.659,1783.7,1783.6,1.12096]
[1745812405473,5.17009,1783.9,1783.7,1.12085]
[1745812405673,1.96229,1783.9,1783.8,2.5578]
[1745812406076,3.62129,1783.9,1783.8,2.5578]
[1745812406678,1.12084,1783.8,1783.7,0.8109]
[1745812406880,2.70474,1783.8,1783.6,4.32872]
[1745812407378,1.5839,1783.7,1783.6,4.32872]
[1745812407575,1.5839,1783.7,1783.6,6.06542]
[1745812409484,2.7048,1783.7,1783.6,4.9445]
[1745812409785,2.7048,1783.7,1783.6,6.06546]
[1745812409986,1.5839,1783.7,1783.6,6.06546]
[1745812410790,2.7048,1783.7,1783.6,6.06546]
[1745812411090,2.7048,1783.7,1783.6,3.2078]
[1745812411881,9.3862,1783.7,1783.3,40.8]
[1745812412183,1.12109,1783.4,1783.3,40.8]
[1745812416200,2.85327,1783.5,1783.3,40.8]
[1745812416494,2.85327,1783.5,1783.3,41.6227]
[1745812416697,1.7206,1783.4,1783.3,41.6227]
[1745812417998,2.84169,1783.4,1783.3,41.6227]
[1745812418587,2.84169,1783.4,1783.3,43.2965]
[1745812418787,2.84169,1783.4,1783.3,44.1215]
[1745812419999,1.7206,1783.4,1783.3,44.1215]
[1745812420200,4.8603,1783.6,1783.4,1.12107]
[1745812420201,5.98129,1783.6,1783.4,1.12107]
[1745812420493,5.98129,1783.6,1783.5,1.6738]
[1745812420891,2.77349,1783.6,1783.5,1.6738]
[1745812422096,1.12103,1783.5,1783.4,3.2078]
[1745812422292,2.82313,1783.5,1783.4,3.2078]
[1745812423290,2.82313,1783.5,1783.4,4.8203]
[1745812425701,1.7021,1783.5,1783.4,5.94139]
[1745812426297,1.7021,1783.5,1783.4,2.73359]
[1745812426498,2.82313,1783.5,1783.4,4.8203]
[1745812433114,1.7021,1783.5,1783.4,5.94139]
[1745812433321,0.8241,1783.6,1783.4,5.94139]
[1745812433514,1.94512,1783.6,1783.5,1.6735]
[1745812436015,2.75525,1783.7,1783.5,2.79453]
[1745812436215,2.75525,1783.7,1783.6,0.8298]
[1745812436412,2.75525,1783.7,1783.6,3.2345]
[1745812438724,2.75525,1783.7,1783.6,0.8298]
[1745812444427,1.6343,1783.7,1783.6,6.85586]
[1745812444617,1.94889,1783.8,1783.6,5.7349]
[1745812444924,3.58609,1783.8,1783.7,1.6973]
[1745812445729,3.58609,1783.8,1783.6,4.0376]
[1745812445730,1.1209,1783.7,1783.6,4.0376]
[1745812445926,1.1209,1783.7,1783.6,5.7715]
[1745812446526,2.7482,1783.7,1783.6,5.7715]
[1745812448725,1.6273,1783.7,1783.6,6.89246]
[1745812449527,1.94888,1783.8,1783.6,6.89246]
[1745812449831,3.60138,1783.8,1783.7,1.6837]
[1745812453933,3.60138,1783.8,1783.6,4.0376]
[1745812454135,1.5794,1783.7,1783.6,5.7492]
[1745812454630,1.5794,1783.7,1783.6,6.87016]
[1745812458034,1.5794,1783.7,1783.6,3.66236]
[1745812458234,1.5794,1783.7,1783.6,6.87016]
[1745812459737,8.04655,1784.0,1783.6,5.7492]
[1745812459931,1.7462,1784.0,1783.9,4.32858]
[1745812460236,1.12066,1784.1,1783.9,4.32858]
[1745812460435,3.4202,1784.3,1784.0,2.4]
[1745812460736,2.86683,1784.2,1784.0,2.4]
[1745812461137,1.12065,1784.1,1784.0,2.4]
[1745812463532,1.12513303,1784.1,1784.0,2.4]
[1745812466443,1.12071,1784.0,1783.9,3.2078]
[1745812466645,3.62141,1784.0,1783.9,3.2078]
[1745812467349,2.5007,1784.0,1783.9,3.2078]
[1745812467845,3.62141,1784.0,1783.9,3.2078]
[1745812468749,2.5007,1784.0,1783.9,3.2078]
[1745812468946,2.5007,1784.0,1783.9,5.93918]
[1745812469348,1.12084,1783.8,1783.7,3.2078]
[1745812469547,7.5007,1784.0,1783.5,3.2078]
[1745812469548,2.4086,1783.9,1783.5,3.2078]
[1745812469847,1.12093,1783.7,1783.5,3.2078]
[1745812470055,2.5876,1783.6,1783.5,3.2078]
[1745812472147,2.5876,1783.6,1783.5,4.32883]
[1745812472446,2.5876,1783.6,1783.5,6.01173]
[1745812472852,1.7132,1783.6,1783.5,6.01173]
[1745812474141,1.7132,1783.6,1783.5,4.8907]
[1745812474550,2.83416,1783.6,1783.5,4.8907]
[1745812474739,1.7132,1783.6,1783.5,4.8907]
[1745812477744,1.7132,1783.6,1783.5,6.01173]
[1745812480654,1.12073,1784.0,1783.8,1.12081]
[1745812480856,2.81043,1784.0,1783.9,0.8755]
[1745812488160,1.6897,1784.0,1783.9,0.8755]
[1745812488360,2.81041,1784.0,1783.9,2.5649]
[1745812489558,0.00448303,1784.1,1783.9,0.8755]
[1745812489760,0.00448303,1784.1,1784.0,10.58661]
[1745812490255,0.00448303,1784.1,1784.0,55.18861]
[1745812492857,3.68086,1784.4,1784.2,1.12054]
[1745812493064,1.7091,1784.4,1784.3,7.60332]
[1745812493654,1.7091,1784.4,1784.3,48.40332]
[1745812493858,1.98157,1784.6,1784.4,1.12043]
[1745812494062,1.7394,1784.6,1784.5,1.1204]
[1745812501360,1.1204,1784.5,1784.4,2.77982]
[1745812501555,0.8101,1784.5,1784.4,2.77982]
[1745812501762,1.7394,1784.6,1784.5,1.1204]
[1745812501961,0.8101,1784.8,1784.7,1.12027]
[1745812502160,3.58491,1784.8,1784.7,1.12027]
[1745812502567,1.6546,1784.8,1784.7,8.04207]
[1745812502768,2.4647,1785.1,1785.0,1.12008]
[1745812503664,2.4647,1785.1,1785.0,1.39968]
[1745812503865,5.96331,1785.5,1785.2,1.11992]
[1745812504068,5.96331,1785.5,1785.3,1.11989]
[1745812504373,5.96329,1785.5,1785.3,1.11989]
[1745812504564,5.96329,1785.5,1785.4,40.8]
[1745812505168,1.6357,1785.5,1785.4,40.8]
[1745812505865,1.6357,1785.5,1785.4,45.12763]
[1745812506072,1.6357,1785.5,1785.4,46.81123]
[1745812506572,0.8101,1785.5,1785.4,46.81123]
[1745812506773,6.7467,1785.8,1785.4,46.81121]
[1745812506973,2.5848,1785.7,1785.6,4.32751]
[1745812507173,2.5848,1785.7,1785.5,2.85225]
[1745812508275,2.5848,1785.7,1785.5,1.7325]
[1745812508473,1.7276,1785.6,1785.4,44.0078]
[1745812508771,2.84736,1785.6,1785.4,47.7188]
[1745812509159,1.7276,1785.5,1785.4,49.4513]
[1745812509363,1.7276,1785.5,1785.4,50.57113]
[1745812509670,1.7276,1785.5,1785.4,46.86013]
[1745812510268,1.7276,1785.5,1785.4,45.7403]
[1745812510669,1.7276,1785.5,1785.4,46.86013]
[1745812510969,3.712,1786.2,1785.8,1.11958]
[1745812511167,0.8464,1786.1,1785.8,3.2078]
[1745812511367,9.9106,1786.4,1786.2,1.11933]
[1745812511368,1.6239,1786.3,1786.2,1.11933]
[1745812511576,0.8464,1786.5,1786.3,1.11927]
[1745812511767,1.11927,1786.3,1786.2,3.2078]
[1745812511966,2.4703,1786.5,1786.2,44.0078]
[1745812512274,1.11924,1786.4,1786.2,44.0078]
[1745812512475,2.4703,1786.5,1786.2,44.0078]
[1745812512476,2.74317,1786.3,1786.2,44.0078]
[1745812514075,1.11946,1786.0,1785.9,3.2078]
[1745812515175,1.11946,1786.0,1785.9,40.8]
[1745812515176,6.11946,1786.0,1785.9,40.8]
[1745812515474,7.81636,1786.0,1785.9,40.8]
[1745812518275,1.6969,1786.0,1785.9,40.8]
[1745812518666,2.81636,1786.0,1785.9,40.8]
[1745812518871,1.11969,1785.7,1785.5,3.2078]
[1745812519073,2.4939,1785.6,1785.5,1.11977]
[1745812519372,0.7913,1785.6,1785.5,46.70367]
[1745812519880,1.7026,1785.7,1785.6,1.11971]
[1745812520075,1.7026,1785.7,1785.5,45.5839]
[1745812520374,0.8502,1786.0,1785.9,1.11952]
[1745812520680,2.5528,1786.0,1785.8,1.11953]
[1745812520874,2.5528,1786.0,1785.9,2.69562]
[1745812521182,2.5528,1786.0,1785.9,4.7839]
[1745812522877,3.67226,1786.0,1785.9,4.7839]
[1745812523082,2.5528,1786.0,1785.9,4.7839]
[1745812524083,3.67226,1786.0,1785.9,1.5761]
[1745812525184,2.5528,1786.0,1785.9,1.5761]
[1745812525381,0.8502,1786.0,1785.9,1.5761]
[1745812525583,0.8502,1786.0,1785.9,2.4503]
[1745812526589,1.96966,1786.0,1785.9,2.4503]
[1745812526982,1.96966,1786.0,1785.9,1.856]
[1745812527178,0.8502,1786.0,1785.9,1.856]
[1745812527375,2.80944,1786.1,1785.9,1.856]
[1745812527583,1.11946,1786.0,1785.9,1.856]
[1745812528786,3.63424,1786.1,1785.9,2.9755]
[1745812528990,1.11946,1786.0,1785.9,1.856]
[1745812529186,2.74476,1786.0,1785.9,1.856]
[1745812529787,2.74476,1786.0,1785.9,0.2799]
[1745812535097,1.6253,1786.0,1785.9,0.2799]
[1745812535398,1.6253,1786.0,1785.9,1.9766]
[1745812536099,1.94423,1786.1,1785.9,1.9766]
[1745812536302,3.66673,1786.1,1785.9,1.9766]
[1745812536488,1.11946,1786.0,1785.9,5.1844]
[1745812537095,3.66671,1786.1,1785.9,5.1844]
[1745812537295,1.11946,1786.0,1785.9,5.1844]
[1745812537495,2.74566,1786.0,1785.9,5.1844]
[1745812539399,2.74956829,1786.0,1785.9,5.1844]
[1745812539700,2.74956829,1786.0,1785.9,3.4877]
[1745812540997,2.74956829,1786.0,1785.9,5.0974]
[1745812545699,2.74956829,1786.0,1785.9,0.2799]
[1745812546401,2.84328091,1786.0,1785.9,0.2799]
[1745812550105,2.74956829,1786.0,1785.9,0.2799]
[1745812550310,2.84328237,1786.0,1785.9,0.2799]
[1745812550510,1.11971,1785.6,1785.5,44.508]
[1745812550711,1.11971,1785.6,1785.5,40.8]
[1745812551507,2.82241,1785.6,1785.5,40.8]
[1745812553099,2.82241,1785.6,1785.5,42.5095]
[1745812553301,2.82241,1785.6,1785.5,40.8]
[1745812555012,2.82241,1785.6,1785.5,41.618]
[1745812555506,2.82241,1785.6,1785.5,43.358]
[1745812556512,1.97199,1785.7,1785.5,43.358]
[1745812556704,1.11969,1785.7,1785.6,2.6014]
[1745812563213,1.11971,1785.6,1785.5,40.8]
[1745812563413,1.95791,1785.6,1785.5,40.8]
[1745812563609,1.95791,1785.6,1785.5,42.533]
[1745812569024,1.95791,1785.6,1785.4,3.2078]
[1745812569025,1.11983,1785.4,1785.3,0.2791]
[1745812569222,1.1199,1785.3,1785.2,1.6329]
[1745812569618,2.82516,1785.4,1785.2,42.4329]
[1745812569923,2.82516,1785.4,1785.3,1.739]
[1745812571127,1.11986,1785.4,1785.3,1.739]
[1745812571327,3.708,1785.8,1785.3,2.85887]
[1745812571527,1.11974,1785.6,1785.4,3.2078]
[1745812571721,1.11974,1785.6,1785.5,1.6681]
[1745812571922,1.11974,1785.6,1785.5,2.5315]
[1745812574032,1.11986,1785.4,1785.2,44.8178]
[1745812574234,1.11986,1785.4,1785.3,1.6935]
[1745812574431,1.11986,1785.4,1785.3,2.5569]
[1745812574726,1.11986,1785.4,1785.3,1.6935]
[1745812575430,2.74446,1785.4,1785.3,1.6935]
[1745812575623,1.1199,1785.3,1785.2,41.61]
[1745812575823,2.7445,1785.3,1785.2,40.8]
[1745812576025,3.5919,1785.3,1785.2,40.8]
[1745812576224,3.68565369,1785.3,1785.2,40.8]
[1745812576428,6.89345369,1785.3,1785.2,40.8]
[1745812577535,6.89345407,1785.3,1785.2,40.8]
[1745812578926,5.9523,1785.3,1785.2,40.8]
[1745812580537,2.7445,1785.3,1785.2,40.8]
[1745812582738,1.1199,1785.3,1785.2,40.8]
[1745812589141,2.8616,1785.3,1785.2,40.8]
[1745812594442,2.95534971,1785.3,1785.2,40.8]
[1745812596340,2.95535222,1785.3,1785.2,40.8]
[1745812597839,2.9553523,1785.3,1785.2,40.8]
[1745812601047,2.95535362,1785.3,1785.2,40.8]
[1745812604242,2.8616,1785.3,1785.2,40.8]
[1745812604448,2.95535273,1785.3,1785.2,40.8]
[1745812605848,2.8616,1785.3,1785.2,40.8]
[1745812606047,1.11996,1785.2,1785.1,1.9727]
[1745812606344,1.11996,1785.2,1785.1,1.6935]
[1745812607046,1.11996,1785.2,1785.1,42.4935]
[1745812607650,1.11996,1785.2,1785.1,42.7727]
[1745812615955,5.888,1785.4,1785.2,1.11996]
[1745812616156,5.888,1785.4,1785.3,2.4802]
[1745812616357,7.00783,1785.4,1785.3,2.4802]
[1745812616554,7.00783,1785.4,1785.3,43.2802]
[1745812617053,1.11983,1785.4,1785.3,43.2802]
[1745812617950,1.1197,1785.7,1785.3,44.40006]
[1745812618255,1.11972,1785.6,1785.4,5.803]
[1745812618459,1.11972,1785.6,1785.5,1.7417]
[1745812623157,1.1196,1785.8,1785.5,7.86146]
[1745812623362,9.595,1785.9,1785.6,4.0045]
[1745812623363,10.71457,1785.9,1785.6,4.0045]
[1745812623664,1.11958,1785.8,1785.7,0.8242]
[1745812623866,4.82656,1785.9,1785.7,2.4136]
[1745812624264,4.82656,1785.9,1785.8,1.5894]
[1745812624765,1.11956,1785.9,1785.8,1.5894]
[1745812625663,2.75816,1785.9,1785.8,1.5894]
[1745812625864,1.11958,1785.8,1785.7,0.8242]
[1745812626069,3.63368,1785.8,1785.7,2.5021]
[1745812626863,3.63368,1785.8,1785.7,2.7821]
[1745812628765,3.63368,1785.8,1785.7,1.9579]
[1745812642389,3.63368,1785.8,1785.7,0.28]
[1745812642789,3.72740116,1785.8,1785.7,0.28]
[1745812644592,8.72740116,1785.8,1785.7,1e-05]
[1745812644896,1.11983,1785.4,1785.3,40.8]
[1745812647997,1.1198,1785.5,1785.3,40.8]
[1745812648192,6.9118,1785.6,1785.4,3.56062]
[1745812648398,1.1197,1785.7,1785.5,1.97486]
[1745812648589,7.0076,1785.8,1785.5,3.62296]
[1745812648789,9.4468,1785.9,1785.6,3.2078]
[1745812648790,3.2078,1785.9,1785.6,3.2078]
[1745812648995,3.2078,1785.9,1785.7,1.98032]
[1745812649201,1.1195,1786.0,1785.8,2.76768]
[1745812649393,1.1195,1786.0,1785.9,2.5032]
[1745812649790,1.11943,1786.1,1785.9,3.62271]
[1745812650093,1.11943,1786.1,1786.0,4.8659]
[1745812650299,1.11939,1786.1,1786.0,4.8659]
[1745812653899,1.11937,1786.2,1786.0,4.8659]
[1745812654302,1.11937,1786.2,1786.1,2.5037]
[1745812658006,1.11939,1786.1,1786.0,3.2078]
[1745812658398,1.11939,1786.1,1786.0,5.6584]
[1745812664105,2.71149,1786.1,1786.0,5.6584]
[1745812664409,3.56199,1786.1,1786.0,5.6584]
[1745812664712,3.56199,1786.1,1786.0,3.2078]
[1745812666813,1.11946,1786.0,1785.9,1.6622]
[1745812667006,2.75516,1786.0,1785.9,1.6622]
[1745812670013,1.11952,1785.9,1785.8,5.1431]
[1745812670211,1.11965,1785.7,1785.6,3.2078]
[1745812670914,2.77445,1785.7,1785.6,3.2078]
[1745812671614,1.11965,1785.7,1785.6,3.2078]
[1745812672111,1.11965,1785.7,1785.6,4.8021]
[1745812675819,1.11962,1785.8,1785.6,5.92179]
[1745812676021,1.11962,1785.8,1785.7,3.331]
[1745812678923,2.86827,1785.9,1785.7,3.331]
[1745812679119,2.86827,1785.9,1785.8,4.8453]
[1745812680118,5.64049,1786.0,1785.8,5.96488]
[1745812680319,1.11943,1786.1,1785.9,2.75702]
[1745812680520,1.11943,1786.1,1786.0,3.3175]
[1745812681224,2.3777,1786.2,1785.8,3.2078]
[1745812681426,1.6489,1786.0,1785.9,2.4822]
[1745812681724,2.76838,1786.0,1785.9,2.4822]
[1745812682024,1.11948,1786.0,1785.9,2.4822]
[1745812682428,1.11943,1786.1,1785.9,3.6017]
[1745812682621,1.11943,1786.1,1786.0,2.4848]
[1745812684623,1.11943,1786.1,1786.0,5.6926]
[1745812686926,1.11943,1786.1,1786.0,2.4848]
[1745812687923,1.11943,1786.1,1786.0,3.60426]
[1745812688125,1.91128,1786.2,1786.0,3.60426]
[1745812688324,1.91128,1786.2,1786.1,1.6004]
[1745812691316,6.45908427,1786.6,1786.1,1.6004]
[1745812691521,6.45908427,1786.6,1786.3,3.2078]
[1745812691522,0.851,1786.6,1786.3,3.2078]
[1745812691730,3.69622,1786.6,1786.4,2.4747]
[1745812692037,3.69622,1786.6,1786.5,43.2542]
[1745812694722,3.69622,1786.6,1786.5,40.8]
[1745812696630,8.78989503,1786.6,1786.5,40.8]
[1745812696830,12.48889503,1786.6,1786.5,40.8]
[1745812697832,7.48889503,1786.6,1786.5,40.8]
[1745812698035,7.48889619,1786.6,1786.5,40.8]
[1745812699337,7.49393428,1786.6,1786.5,40.8]
[1745812701141,1.11939,1786.1,1786.0,3.2078]
[1745812701337,1.11956,1785.9,1785.7,6.552]
[1745812701636,1.11956,1785.9,1785.8,42.5331]
[1745812702329,2.86726,1785.9,1785.8,42.5331]
[1745812710635,1.93105,1786.1,1785.8,43.65267]
[1745812710940,1.11946,1786.0,1785.9,1.714]
[1745812711540,1.11946,1786.0,1785.9,42.514]
[1745812712642,2.70626,1786.0,1785.9,42.514]
[1745812716446,2.70626,1786.0,1785.9,42.7928]
[1745812717145,3.52156,1786.0,1785.9,41.0788]
[1745812718042,6.72936,1786.0,1785.9,0.2788]
[1745812718247,15.5220675,1786.0,1785.9,0.2788]
[1745812718839,10.5220675,1786.0,1785.9,0.2788]
[1745812719545,15.5220675,1786.0,1785.9,0.2788]
[1745812720945,10.5220675,1786.0,1785.9,0.2788]
[1745812722449,16.4100675,1786.0,1785.9,0.2788]
[1745812723346,16.31636,1786.0,1785.9,0.2788]
[1745812724739,16.41007257,1786.0,1785.9,0.2788]
[1745812727651,16.41007759,1786.0,1785.9,0.2788]
[1745812728348,21.41007759,1786.0,1785.9,1e-05]
[1745812728547,1.11971,1785.6,1785.5,0.8571]
[1745812728750,1.11983,1785.4,1785.3,1.691]
[1745812728947,1.11983,1785.4,1785.3,42.491]
[1745812729547,2.85923,1785.4,1785.3,42.491]
[1745812729843,1.1199,1785.3,1785.2,0.8379]
[1745812730346,1.1199,1785.3,1785.2,41.6379]
[1745812731144,1.1199,1785.3,1785.2,0.8379]
[1745812732549,1.11999,1785.2,1785.0,44.0078]
[1745812732849,1.1199,1785.3,1785.0,44.0078]
[1745812733050,1.11996,1785.2,1785.1,3.3537]
[1745812733249,1.11994,1785.3,1785.1,3.3537]
[1745812733545,1.11994,1785.3,1785.2,1.6704]
[1745812739254,2.80974,1785.3,1785.2,1.6704]
[1745812740753,1.12002,1785.1,1785.0,40.8]
[1745812740943,1.12015,1784.9,1784.8,2.4663]
[1745812741553,1.12014,1785.0,1784.8,43.2663]
[1745812741751,1.12014,1785.0,1784.9,2.6171]
[1745812742366,8.02686,1785.1,1784.9,2.6171]
[1745812742554,8.02682,1785.1,1785.0,1.7457]
[1745812742745,8.12057895,1785.1,1785.0,1.7457]
[1745812742942,7.00055895,1785.1,1784.8,41.6235]
[1745812743148,1.12015,1784.9,1784.8,41.6235]
[1745812743857,1.12015,1784.9,1784.8,43.3692]